fUSD/lending_fUSD_20250716
["ID","MTS","AMOUNT","RATE_DAILY","PERIOD"]
[372404843,1752630632471,-506.0,0.00021618,2]
[372404844,1752630632481,-706.3532825,0.00021624,5]
[372404845,1752630632491,-3584.94606492,0.0002167,2]
[372404846,1752630632503,-575.0,0.0002167,2]
[372404847,1752630632522,-4505.49212375,0.0002167,2]
[372404848,1752630632532,-706.3532825,0.00021728,5]
[372404849,1752630632541,-150.0,0.00021736,2]
[372404850,1752630632551,-150.0,0.00021738,2]
[372404851,1752630632561,-208.17,0.00021748,2]
[372404852,1752630632570,-150.0,0.00021754,2]
[372404853,1752630632580,-150.0,0.00021778,2]
[372404854,1752630632590,-1515.695,0.00021792,2]
[372404855,1752630632599,-1267.0,0.00021792,2]
[372404856,1752630632703,-857.2,0.00021792,2]
[372404857,1752630632714,-2015.0,0.00021792,2]
[372404858,1752630632723,-806.0,0.00021792,2]
[372404859,1752630632732,-21351.0,0.00021792,2]
[372404860,1752630632742,-5000.0,0.00021817,2]
[372404861,1752630632751,-2500.0,0.00021817,2]
[372404862,1752630632760,-223.87344561,0.00021817,2]
[372404863,1752630632770,-194.75316842,0.00021817,2]
[372404864,1752630632779,-176.42720628,0.00021817,2]
[372404865,1752630632788,-150.0,0.00021831,2]
[372404866,1752630632797,-706.3532825,0.00021831,6]
[372404867,1752630632806,-714.46749211,0.00021854,2]
[372404868,1752630632815,-150.0,0.00021862,2]
[372404869,1752630632824,-150.0,0.00021865,2]
[372404870,1752630632833,-150.0,0.00021866,2]
[372404871,1752630632842,-150.0,0.00021881,2]
[372404872,1752630632851,-1075.3986,0.0002189,2]
[372404873,1752630632860,-150.0,0.00021896,2]
[372404874,1752630632869,-943.25505493,0.000219,2]
[372404875,1752630632881,-859.35494507,0.000219,2]
[372404876,1752630632890,-157.84001819,0.000219,2]
[372404877,1752630632899,-2021.32,0.000219,2]
[372404878,1752630632908,-168.69,0.00021907,2]
[372404879,1752630632918,-168.69,0.00021907,2]
[372404880,1752630632928,-29.27793245,0.00021907,2]
[372404881,1752630632939,-139.41206755,0.00021907,2]
[372404882,1752630632948,-710.42200482,0.00021907,2]
[372404883,1752630632959,-169.17799518,0.00021907,2]
[372404884,1752630632968,-260.6701099,0.00021907,2]
[372404885,1752630637524,-618.9298901,0.00021907,2]
[372404886,1752630637534,-484.7300305,0.00021907,2]
[372404887,1752630637543,-150.0,0.00021909,2]
[372404888,1752630637558,-150.0,0.00021913,2]
[372404889,1752630637572,-211.58749742,0.00021916,2]
[372404890,1752630637581,-500.0,0.00021916,2]
[372404891,1752630637591,-213.04588371,0.00021916,2]
[372404892,1752630637600,-2000.0,0.00021916,2]
[372404893,1752630637609,-1000.0,0.00021916,2]
[372404894,1752630637618,-266.21103194,0.00021916,2]
[372404895,1752630637628,-2000.0,0.00021916,2]
[372404896,1752630637638,-6819.94797003,0.00021916,2]
[372404897,1752630637875,-3000.0,0.00021602,7]
[372404898,1752630637885,-3050.83202997,0.00021916,2]
[372404899,1752630637894,-259.67553735,0.00021917,2]
[372405011,1752630639669,-213599.68175421,0.00021917,2]
[372405012,1752630639682,-462.0086326,0.00021917,2]
[372405013,1752630639692,-460.0,0.00021917,2]
[372405014,1752630639701,-460.0,0.00021917,2]
[372405015,1752630639711,-460.0,0.00021917,2]
[372405016,1752630639721,-959.98,0.00021917,2]
[372405017,1752630639730,-460.0,0.00021917,2]
[372405018,1752630639740,-460.0,0.00021917,2]
[372405019,1752630639749,-462.81431932,0.00021917,2]
[372405020,1752630639760,-460.0,0.00021917,2]
[372405021,1752630639769,-525.90682731,0.00021917,2]
[372405022,1752630639778,-460.0,0.00021917,2]
[372405023,1752630639787,-460.0,0.00021917,2]
[372405024,1752630639796,-474.46364544,0.00021917,2]
[372405025,1752630639806,-474.46364544,0.00021917,2]
[372405026,1752630639816,-436.84232407,0.00021917,2]
[372405027,1752630639825,-460.98282316,0.00021917,2]
[372405028,1752630639834,-460.0,0.00021917,2]
[372405029,1752630639843,-557.76,0.00021917,2]
[372405030,1752630639852,-460.0,0.00021917,2]
[372405031,1752630639862,-460.0,0.00021917,2]
[372405032,1752630639871,-460.64517406,0.00021917,2]
[372405033,1752630639880,-460.82217631,0.00021917,2]
[372405034,1752630639890,-460.0,0.00021917,2]
[372405035,1752630639899,-1100.59,0.00021917,2]
[372405036,1752630639908,-460.0,0.00021917,2]
[372405037,1752630639917,-460.0,0.00021917,2]
[372405038,1752630639926,-460.0,0.00021917,2]
[372405039,1752630639936,-430.91846146,0.00021917,2]
[372405040,1752630639944,-460.0,0.00021917,2]
[372405041,1752630639954,-460.0,0.00021917,2]
[372405042,1752630639963,-460.0,0.00021917,2]
[372405043,1752630639972,-663.37,0.00021917,2]
[372405044,1752630639982,-526.16404302,0.00021917,2]
[372405045,1752630639991,-460.0,0.00021917,2]
[372405046,1752630640000,-460.0,0.00021917,2]
[372405047,1752630640009,-460.0,0.00021917,2]
[372405048,1752630640019,-460.0,0.00021917,2]
[372405049,1752630640028,-192.77679141,0.00021917,2]
[372405050,1752630640037,-462.97335058,0.00021917,2]
[372405051,1752630640046,-347.50158156,0.00021917,2]
[372405052,1752630640055,-1174.41,0.00021917,2]
[372405053,1752630640064,-460.0,0.00021917,2]
[372405054,1752630640074,-461.67090361,0.00021917,2]
[372405055,1752630640084,-462.44819564,0.00021917,2]
[372405056,1752630640093,-490.12,0.00021917,2]
[372405057,1752630640102,-461.64146533,0.00021917,2]
[372405058,1752630640112,-460.0,0.00021917,2]
[372405059,1752630640121,-460.0,0.00021917,2]
[372405060,1752630640130,-460.0,0.00021917,2]
[372405061,1752630640140,-460.0,0.00021917,2]
[372405062,1752630640149,-460.0,0.00021917,2]
[372405063,1752630640158,-468.78419582,0.00021917,2]
[372405064,1752630640167,-947.0,0.00021917,2]
[372405065,1752630640176,-460.0,0.00021917,2]
[372405066,1752630640186,-2104.24,0.00021917,2]
[372405067,1752630640195,-179.65838813,0.00021917,2]
[372405068,1752630640205,-463.10450488,0.00021917,2]
[372405069,1752630640214,-599.29,0.00021917,2]
[372405070,1752630640223,-460.0,0.00021917,2]
[372405071,1752630640233,-459.46283553,0.00021917,2]
[372405072,1752630640242,-460.0,0.00021917,2]
[372405073,1752630640251,-536.37,0.00021917,2]
[372405074,1752630640260,-463.88144004,0.00021917,2]
[372405075,1752630640270,-462.34735879,0.00021917,2]
[372405076,1752630640279,-566.78,0.00021917,2]
[372405077,1752630640288,-460.0,0.00021917,2]
[372405078,1752630640297,-1251.23,0.00021917,2]
[372405079,1752630640306,-460.0,0.00021917,2]
[372405080,1752630640315,-460.0,0.00021917,2]
[372405081,1752630640324,-460.0,0.00021917,2]
[372405082,1752630640333,-1001.87,0.00021917,2]
[372405083,1752630640343,-460.0,0.00021917,2]
[372405084,1752630640352,-460.0,0.00021917,2]
[372405085,1752630640361,-460.0,0.00021917,2]
[372405086,1752630640370,-460.0,0.00021917,2]
[372405087,1752630640380,-460.0,0.00021917,2]
[372405088,1752630640389,-912.38,0.00021917,2]
[372405089,1752630640398,-460.0,0.00021917,2]
[372405090,1752630640408,-460.0,0.00021917,2]
[372405091,1752630640417,-460.0,0.00021917,2]
[372405092,1752630640426,-795.92,0.00021917,2]
[372405093,1752630640437,-465.59316935,0.00021917,2]
[372405094,1752630640447,-460.0,0.00021917,2]
[372405095,1752630640457,-524.68,0.00021917,2]
[372405096,1752630640466,-460.0,0.00021917,2]
[372405097,1752630640475,-460.0,0.00021917,2]
[372405098,1752630640486,-460.0,0.00021917,2]
[372405099,1752630640495,-463.01584958,0.00021917,2]
[372405100,1752630640505,-464.65607354,0.00021917,2]
[372405101,1752630640514,-759.88,0.00021917,2]
[372405102,1752630640524,-460.0,0.00021917,2]
[372405103,1752630640534,-556.58,0.00021917,2]
[372405104,1752630640544,-460.0,0.00021917,2]
[372405105,1752630640553,-460.0,0.00021917,2]
[372405106,1752630640563,-460.0,0.00021917,2]
[372405107,1752630640574,-460.0,0.00021917,2]
[372405108,1752630640584,-460.0,0.00021917,2]
[372405109,1752630640593,-1101.25,0.00021917,2]
[372405110,1752630640603,-460.0,0.00021917,2]
[372405111,1752630640613,-772.53,0.00021917,2]
[372405112,1752630640622,-775.61,0.00021917,2]
[372405113,1752630640632,-460.73077877,0.00021917,2]
[372405114,1752630640641,-945.02,0.00021917,2]
[372405115,1752630640650,-78.95090502,0.00021917,2]
[372405116,1752630640750,-381.04909498,0.00021917,2]
[372405117,1752630640762,-460.0,0.00021917,2]
[372405118,1752630640774,-460.0,0.00021917,2]
[372405119,1752630640786,-490.39,0.00021917,2]
[372405120,1752630640797,-460.0,0.00021917,2]
[372405121,1752630640807,-460.0,0.00021917,2]
[372405122,1752630640817,-461.78505542,0.00021917,2]
[372405123,1752630640827,-463.53445305,0.00021917,2]
[372405124,1752630640839,-611.13,0.00021917,2]
[372405125,1752630640848,-460.0,0.00021917,2]
[372405126,1752630640858,-712.06,0.00021917,2]
[372405127,1752630640867,-611.04,0.00021917,5]
[372405128,1752630640877,-1067.12,0.00021917,2]
[372405129,1752630640887,-460.0,0.00021917,2]
[372405130,1752630640896,-538.29835106,0.00021917,2]
[372405131,1752630640906,-694.56,0.00021917,2]
[372405132,1752630640915,-695.96600304,0.00021917,2]
[372405133,1752630640929,-555.42399696,0.00021917,2]
[372405134,1752630640939,-460.0,0.00021917,2]
[372405135,1752630640949,-460.0,0.00021917,2]
[372405136,1752630640959,-460.0,0.00021917,2]
[372405137,1752630640968,-460.0,0.00021917,2]
[372405138,1752630640978,-460.0,0.00021917,2]
[372405139,1752630640987,-460.0,0.00021917,2]
[372405140,1752630640997,-460.0,0.00021917,2]
[372405141,1752630641006,-460.0,0.00021917,2]
[372405142,1752630641016,-475.49399004,0.00021917,2]
[372405143,1752630641026,-1374.98,0.00021917,2]
[372405144,1752630641035,-474.29413353,0.00021917,2]
[372405145,1752630641045,-599.56,0.00021917,2]
[372405146,1752630641054,-371.22088571,0.00021917,2]
[372405147,1752630641063,-460.0,0.00021917,2]
[372405148,1752630641073,-460.0,0.00021917,2]
[372405149,1752630641083,-804.75,0.00021917,2]
[372405150,1752630641092,-461.76289054,0.00021917,2]
[372405151,1752630641102,-460.0,0.00021917,2]
[372405152,1752630641112,-460.0,0.00021917,2]
[372405153,1752630641123,-461.73600397,0.00021917,2]
[372405154,1752630641133,-604.12,0.00021917,2]
[372405155,1752630641143,-460.0,0.00021917,2]
[372405156,1752630641152,-1671.02,0.00021917,2]
[372405157,1752630641161,-553.10046445,0.00021917,2]
[372405158,1752630641170,-460.0,0.00021917,2]
[372405159,1752630641180,-460.0,0.00021917,2]
[372405160,1752630641189,-460.0,0.00021917,2]
[372405161,1752630641199,-460.0,0.00021917,2]
[372405162,1752630641209,-827.63,0.00021917,2]
[372405163,1752630641220,-500.0,0.00021917,2]
[372405164,1752630641230,-500.0,0.00021917,2]
[372405165,1752630641239,-500.0,0.00021917,2]
[372405166,1752630641249,-500.0,0.00021917,2]
[372405167,1752630641258,-500.0,0.00021917,2]
[372405168,1752630641268,-495.2625971,0.00021917,2]
[372405174,1752630645811,-4.7374029,0.00021917,2]
[372405175,1752630645821,-500.0,0.00021917,2]
[372405176,1752630645829,-500.0,0.00021917,2]
[372405177,1752630645839,-500.0,0.00021917,2]
[372405178,1752630645849,-500.0,0.00021917,2]
[372405179,1752630645859,-461.58715804,0.00021917,2]
[372405180,1752630645869,-500.0,0.00021917,2]
[372405181,1752630645878,-500.0,0.00021917,2]
[372405182,1752630645888,-460.0,0.00021917,2]
[372405183,1752630645898,-500.0,0.00021917,2]
[372405184,1752630645908,-500.0,0.00021917,2]
[372405185,1752630645917,-500.0,0.00021917,2]
[372405186,1752630645927,-442.57543906,0.00021917,2]
[372405239,1752630765659,779.0,0.000301,120]
[372405240,1752630774200,3076.3,0.000301,120]
[372405241,1752630777489,1000.0,0.000301,120]
[372405242,1752630778271,150.8263479,0.00030136,120]
[372405248,1752631156030,10000.0,0.00030137,120]
[372405251,1752631167509,174.52,0.00013699,2]
[372405261,1752631275337,4930.95521348,0.0002111,29]
[372405262,1752631275358,5000.0,0.0002111,29]
[372405263,1752631275379,5000.0,0.0002111,29]
[372405264,1752631275399,5000.0,0.0002111,29]
[372405265,1752631275419,5000.0,0.0002111,29]
[372405266,1752631275439,5000.0,0.0002111,29]
[372405269,1752631319334,2835.33652521,0.000211,30]
[372405281,1752631631693,1150.0,0.00030137,120]
[372405318,1752631691570,1523.8932728,0.0003,120]
[372405319,1752631764897,1264.72729701,0.00030136,120]
[372405322,1752631811384,200.0,0.00028252,120]
[372405324,1752631831767,-520.0,0.00019502,2]
[372405325,1752631831777,-107.68208494,0.0002,2]
[372405337,1752631832865,-389.30910002,0.0002,2]
[372405338,1752631832877,-362.07809996,0.0002,2]
[372405339,1752631832888,-677.35619826,0.0002,2]
[372405340,1752631832899,-374.87864375,0.0002,2]
[372405341,1752631832911,-449.20469911,0.0002,2]
[372405342,1752631832975,-1726.42122989,0.0002,2]
[372405343,1752631832984,-164.08,0.00020003,2]
[372405344,1752631832994,-876.77,0.00020048,2]
[372405345,1752631833003,-1200.0,0.00020091,2]
[372405346,1752631833017,-300.0,0.00020091,2]
[372405347,1752631833026,-16435.8,0.00020092,2]
[372405348,1752631833037,-250.0,0.00020102,2]
[372405349,1752631833047,-152.0,0.00020168,3]
[372405350,1752631833058,-174.52,0.00020187,2]
[372405351,1752631833068,-152.0,0.00020425,4]
[372405352,1752631833078,-345.07,0.00020516,2]
[372405353,1752631833088,-222.0,0.00020583,2]
[372405354,1752631833099,-222.0,0.00020654,2]
[372405355,1752631833108,-151.0,0.00020667,2]
[372405356,1752631833119,-4031.856,0.00020667,2]
[372405357,1752631833128,-500.0,0.00020667,2]
[372405358,1752631833138,-500.0,0.00020667,2]
[372405359,1752631833147,-484.39054623,0.00020667,2]
[372405360,1752631833157,-409.97726961,0.00020667,2]
[372405361,1752631833167,-300.0,0.00020667,2]
[372405362,1752631833178,-300.0,0.00020667,2]
[372405363,1752631833187,-429.05561135,0.00020667,2]
[372405364,1752631833198,-500.0,0.00020667,2]
[372405365,1752631833207,-151.0,0.00020667,2]
[372405366,1752631833216,-500.0,0.00020667,2]
[372405367,1752631833226,-151.0,0.00020667,2]
[372405368,1752631833236,-291.71725388,0.00020667,2]
[372405369,1752631833245,-500.0,0.00020667,2]
[372405370,1752631833255,-500.0,0.00020667,2]
[372405371,1752631833265,-151.0,0.00020667,2]
[372405372,1752631833279,-500.0,0.00020667,2]
[372405373,1752631833289,-165.99204659,0.00020667,2]
[372405374,1752631833298,-500.0,0.00020667,2]
[372405375,1752631833308,-152.69818862,0.00020667,2]
[372405376,1752631833319,-1000.0,0.00020667,2]
[372405377,1752631833328,-500.0,0.00020667,2]
[372405378,1752631833338,-1000.0,0.00020667,2]
[372405379,1752631833348,-500.0,0.00020667,2]
[372405380,1752631833358,-461.79125079,0.00020667,2]
[372405381,1752631833368,-1000.0,0.00020667,2]
[372405382,1752631833378,-1000.0,0.00020667,2]
[372405383,1752631833389,-357.94763464,0.00020667,2]
[372405384,1752631833400,-153.54013086,0.00020667,2]
[372405385,1752631833409,-505.81063766,0.00020667,2]
[372405386,1752631833420,-500.0,0.00020667,2]
[372405387,1752631833430,-500.0,0.00020667,2]
[372405388,1752631833440,-538.63362676,0.00020667,2]
[372405389,1752631833449,-500.0,0.00020667,2]
[372405390,1752631833460,-500.0,0.00020667,2]
[372405391,1752631833469,-500.0,0.00020667,2]
[372405392,1752631833480,-500.0,0.00020667,2]
[372405393,1752631833490,-207.4,0.00020667,2]
[372405394,1752631833500,-500.0,0.00020667,2]
[372405395,1752631833510,-500.0,0.00020667,2]
[372405396,1752631833519,-500.0,0.00020667,2]
[372405397,1752631833528,-500.0,0.00020667,2]
[372405398,1752631833538,-500.0,0.00020667,2]
[372405399,1752631833548,-500.0,0.00020667,2]
[372405400,1752631833557,-600.0,0.00020667,2]
[372405401,1752631833567,-600.0,0.00020667,2]
[372405402,1752631833577,-600.0,0.00020667,2]
[372405403,1752631833587,-600.0,0.00020667,2]
[372405404,1752631833597,-152.35257083,0.00020667,2]
[372405405,1752631833607,-600.0,0.00020667,2]
[372405406,1752631833617,-600.0,0.00020667,2]
[372405407,1752631833627,-600.0,0.00020667,2]
[372405408,1752631833637,-500.0,0.00020667,2]
[372405409,1752631833647,-600.0,0.00020667,2]
[372405410,1752631833657,-500.0,0.00020667,2]
[372405411,1752631833667,-165.9543953,0.00020667,2]
[372405412,1752631833676,-600.0,0.00020667,2]
[372405413,1752631833687,-500.0,0.00020667,2]
[372405414,1752631833698,-600.0,0.00020667,2]
[372405415,1752631833709,-500.0,0.00020667,2]
[372405416,1752631833720,-600.0,0.00020667,2]
[372405417,1752631833730,-500.0,0.00020667,2]
[372405418,1752631833740,-600.0,0.00020667,2]
[372405419,1752631833750,-500.0,0.00020667,2]
[372405420,1752631833760,-600.0,0.00020667,2]
[372405421,1752631833770,-500.0,0.00020667,2]
[372405422,1752631833780,-600.0,0.00020667,2]
[372405423,1752631833790,-500.0,0.00020667,2]
[372405424,1752631833800,-600.0,0.00020667,2]
[372405425,1752631833811,-524.30481781,0.00020667,2]
[372405426,1752631833822,-600.0,0.00020667,2]
[372405427,1752631833832,-600.0,0.00020667,2]
[372405428,1752631833842,-600.0,0.00020667,2]
[372405429,1752631833852,-600.0,0.00020667,2]
[372405430,1752631833862,-615.71722561,0.00020667,2]
[372405431,1752631833873,-222.0,0.00020675,2]
[372405432,1752631833883,-222.0,0.00020676,2]
[372405433,1752631833894,-157.27,0.00020679,2]
[372405434,1752631833904,-21058.47,0.00020679,2]
[372405435,1752631833915,-152.0,0.00020683,5]
[372405436,1752631833926,-222.0,0.00020694,2]
[372405437,1752631833936,-202.85,0.0002072,2]
[372405438,1752631833947,-4181.034672,0.00020722,2]
[372405439,1752631833957,-222.0,0.00020732,2]
[372405440,1752631833968,-168.0,0.00020767,2]
[372405441,1752631833978,-4335.73295486,0.00020777,2]
[372405442,1752631833989,-1230.91,0.00020824,2]
[372405443,1752631833999,-190.0,0.00020824,7]
[372405444,1752631834010,-4496.15507419,0.00020832,2]
[372405445,1752631834023,-752.0,0.00020835,2]
[372405446,1752631834034,-1000.0,0.00020842,2]
[372405447,1752631834044,-222.0,0.00020874,2]
[372405448,1752631834055,-3000.0,0.00020876,2]
[372405449,1752631834066,-4662.51281194,0.00020887,2]
[372405450,1752631834076,-474.34463406,0.000209,4]
[372405451,1752631834087,-152.0,0.00020941,6]
[372405452,1752631834098,-4835.02578598,0.00020942,2]
[372405453,1752631834107,-1864.42113138,0.0002099,2]
[372405454,1752631834121,-1212.24886862,0.0002099,2]
[372405455,1752631834131,-1704.75116138,0.00020997,2]
[372405458,1752631837972,-3309.17057868,0.00020997,2]
[372405459,1752631837982,-1841.68718228,0.00021,2]
[372405460,1752631838036,-425.820991,0.00021,2]
[372405461,1752631838137,-9173.67016561,0.00021,2]
[372405462,1752631838146,-1429.0,0.00021,2]
[372405464,1752631838156,-474.3446338,0.00021003,4]
[372405466,1752631838165,-2002.68080385,0.00021007,2]
[372405467,1752631838175,-5199.43684444,0.00021052,2]
[372405468,1752631838184,-168.0,0.00021101,2]
[372405469,1752631838194,-5391.81600769,0.00021107,2]
[372405470,1752631838204,-474.3446338,0.00021107,4]
[372405471,1752631838214,-2002.68080376,0.00021112,2]
[372405472,1752631838223,-752.0,0.00021117,2]
[372405473,1752631838232,-17854.86299624,0.00021151,2]
[372405474,1752631838244,-2489.40386024,0.00021151,2]
[372405475,1752631838253,-752.0,0.00021161,2]
[372405476,1752631838263,-5591.31319997,0.00021162,2]
[372405477,1752631838273,-152.0,0.00021198,7]
[372405478,1752631838283,-475.0,0.00021208,2]
[372405479,1752631838293,-474.3446338,0.0002121,4]
[372405480,1752631838303,-151.98467732,0.00021215,2]
[372405481,1752631838323,-5798.19178837,0.00021217,2]
[372405482,1752631838333,-2002.68080376,0.00021217,2]
[372405483,1752631838343,-170.55,0.00021269,2]
[372405484,1752631838353,-551.70484653,0.00021272,2]
[372405605,1752631839815,-1162.40475527,0.00021272,2]
[372406717,1752632069068,327.67370551,0.000301,120]
[372406719,1752632220619,157.06,0.00013699,2]
[372406720,1752632247604,209.6322066,0.00030136,120]
[372406721,1752632318804,35550.0,0.00030136,120]
[372406722,1752632357875,499.999999,0.00030136,120]
[372406727,1752632502618,972.61,0.00028767,120]
[372406728,1752632502869,972.61,0.00028767,120]
[372406729,1752632503123,972.61,0.00028767,120]
[372406730,1752632503376,972.61,0.00028767,120]
[372406731,1752632503617,972.61,0.00028767,120]
[372406732,1752632503888,972.61,0.00028767,120]
[372406733,1752632504349,972.61,0.00028767,120]
[372406734,1752632505725,972.61,0.00028767,120]
[372406735,1752632505826,972.61,0.00028767,120]
[372406736,1752632505920,972.61,0.00028767,120]
[372406737,1752632506031,972.61,0.00028767,120]
[372406738,1752632506123,972.61,0.00028767,120]
[372406739,1752632506234,972.61,0.00028767,120]
[372406740,1752632506332,972.61,0.00028767,120]
[372406741,1752632506523,972.61,0.00028767,120]
[372406742,1752632506771,972.61,0.00028767,120]
[372406743,1752632507026,972.61,0.00028767,120]
[372406744,1752632507279,972.61,0.00028767,120]
[372406745,1752632507589,972.61,0.00028767,120]
[372406746,1752632508168,972.61,0.00028767,120]
[372406747,1752632508300,972.61,0.00028767,120]
[372406748,1752632508555,972.61,0.00028767,120]
[372406749,1752632510729,500.0,0.00030136,120]
[372406750,1752632511144,972.61,0.00028767,120]
[372406751,1752632512561,972.79714994,0.00028767,120]
[372406753,1752632543562,-190.0,0.00020695,7]
[372406754,1752632596482,1024.0,0.0003,120]
[372406757,1752632710057,186.33402895,0.000154,2]
[372406758,1752632732390,200.0,0.00029665,120]
[372406761,1752632791756,-10810.0,0.00018,2]
[372406762,1752632792307,151.0,0.000154,2]
[372406777,1752632854612,460.0,0.00030136,120]
[372406783,1752633008267,500.0,0.0003013,120]
[372406790,1752633032003,-664.16382031,0.000179,2]
[372406791,1752633032014,-400.0,0.00017999,2]
[372406792,1752633032024,-300.0,0.00017999,2]
[372406793,1752633032034,-18643.30417184,0.00018,2]
[372406794,1752633032166,-57028.60269481,0.00018,2]
[372406795,1752633032176,-151.0,0.00018,2]
[372406796,1752633032186,-1205.61478307,0.000185,2]
[372406797,1752633032195,-476.27654195,0.000189,2]
[372406798,1752633032205,-476.27654184,0.00019072,2]
[372406799,1752633032215,-516.0,0.00019184,2]
[372406800,1752633032225,-476.27654184,0.00019245,2]
[372406801,1752633032239,-4205.91724235,0.000194,2]
[372406802,1752633032274,-2900.00004,0.000194,2]
[372406803,1752633032372,-480.09960097,0.000194,2]
[372406804,1752633032386,-564.97259829,0.000194,2]
[372406805,1752633032407,-40517.81066586,0.000194,2]
[372406806,1752633032417,-476.27654184,0.00019417,2]
[372406807,1752633032427,-476.27654184,0.0001959,2]
[372406808,1752633032439,-476.27654184,0.00019762,2]
[372406809,1752633032449,-414.55,0.000198,2]
[372406810,1752633032458,-1000.0,0.0001989,2]
[372406811,1752633032470,-817.97601637,0.000199,2]
[372406812,1752633032483,-528.83,0.00019919,2]
[372406814,1752633032494,-476.27654184,0.00019934,2]
[372406817,1752633032504,-24347.91196077,0.00019985,2]
[372406819,1752633032514,-539.55764274,0.0002,2]
[372406821,1752633032523,-476.98936844,0.0002,2]
[372406823,1752633032533,-11888.07088018,0.0002,4]
[372406825,1752633032543,-2793.9274062,0.0002,2]
[372406827,1752633032552,-19713.00175893,0.0002,2]
[372406828,1752633032561,-476.27654184,0.00020107,2]
[372406830,1752633032571,-157.06,0.00020187,2]
[372406832,1752633032581,-476.27654184,0.00020279,3]
[372406834,1752633032590,-476.27654184,0.00020452,3]
[372406836,1752633032599,-13297.59,0.00020553,2]
[372406837,1752633032608,-333.04,0.00020584,2]
[372406839,1752633032618,-500.0,0.00020595,2]
[372406841,1752633032627,-276.05,0.0002061,2]
[372406843,1752633032636,-476.27654184,0.00020624,3]
[372406845,1752633032646,-1006.83255332,0.000207,2]
[372406847,1752633032655,-500.0,0.00020741,2]
[372406849,1752633032665,-392.07175152,0.00020741,2]
[372406851,1752633032674,-172.91,0.00020742,2]
[372406852,1752633032684,-476.27654184,0.00020797,4]
[372406854,1752633032693,-2800.0,0.00020876,2]
[372406856,1752633032702,-1401.87656265,0.000209,2]
[372406858,1752633032712,-176.42720627,0.000209,2]
[372406860,1752633032722,-476.27654184,0.00020969,4]
[372406862,1752633032734,-207.4,0.00020987,2]
[372406864,1752633032743,-4031.856,0.00020987,2]
[372406866,1752633032752,-3446.03,0.0002099,2]
[372406867,1752633032762,-3446.03,0.0002099,2]
[372406869,1752633032771,-53609.29149334,0.00020999,2]
[372406982,1752633037907,-462.34347837,0.000209,2]
[372406983,1752633037922,-500.0,0.00020998,2]
[372406984,1752633037933,-336.7815148,0.00020998,2]
[372406985,1752633037944,-349.99853429,0.00020998,2]
[372406986,1752633037954,-500.0,0.00020998,2]
[372406987,1752633037964,-282.98652704,0.00020998,2]
[372406988,1752633037975,-151.0,0.00020999,2]
[372406989,1752633037989,-3677.0899455,0.00020999,2]
[372406990,1752633038012,-175964.17100378,0.00020999,2]
[372406991,1752633038021,-28247.20035944,0.00020999,2]
[372406992,1752633038031,-127183.5381334,0.00021,2]
[372406993,1752633038040,-1373.0,0.00021,2]
[372406994,1752633038049,-3030.63602465,0.00021,2]
[372406995,1752633038059,-1401.87656263,0.00021017,2]
[372406996,1752633038067,-4181.034672,0.00021042,2]
[372406997,1752633038077,-184.12209718,0.00021052,2]
[372406998,1752633038086,-197.7477,0.0002106,2]